[Event "RUS-ch Men Blitz 2019"]
[Site "Sochi"]
[Date "2019.10.17"]
[Round "1.6"]
[White "Eremeev, Mikhail"]
[Black "Lysyj, Igor"]
[Result "0-1"]
[ECO "D02"]
[WhiteElo "2127"]
[BlackElo "2596"]
[Annotator "ChessBase"]
[PlyCount "72"]
[EventDate "2019.10.17"]
[EventType "swiss"]
[EventCountry "RUS"]
[SourceTitle "playchess.com"]
[Source "ChessBase"]
[SourceQuality "1"]
[TimeControl "180+2"]

1. d4 {[%emt 0:00:00]} d5 {[%emt 0:00:00]} 2. Nf3 {[%emt 0:00:01]} Nf6 {[%emt 0:00:00]} 3. Bf4 {[%emt 0:00:04]} c5 {[%emt 0:00:01]} 4. e3 {[%emt 0:00:03]} Nc6 {[%emt 0:00:03]} 5. c3 {[%emt 0:00:04]} Qb6 {[%emt 0:00:01]} 6. Qc1 {[%emt 0:00:01]} Bf5 {[%emt 0:00:07]} 7. Nh4 {[%emt 0:00:04]} Bd7 {[%emt 0:00:06]} 8. Bd3 {[%emt 0:00:08]} Rc8 {[%emt 0:00:06]} 9. Nf3 {[%emt 0:00:12]} Nh5 {[%emt 0:00:09]} 10. dxc5 {[%emt 0:00:30]} Qxc5 {[%emt 0:00:09]} 11. Nbd2 {[%emt 0:00:22]} Nxf4 {[%emt 0:00:07]} 12. exf4 {[%emt 0:00:01]} g6 {[%emt 0:00:02]} 13. O-O {[%emt 0:00:05]} Bh6 {[%emt 0:00:04]} 14. Nb3 {[%emt 0:00:15]} Qb6 {[%emt 0:00:16]} 15. Re1 {[%emt 0:00:06]} O-O {[%emt 0:00:03]} 16. Qd2 {[%emt 0:00:06]} Rfe8 {[%emt 0:00:04]} 17. Ne5 {[%emt 0:00:28]} Nxe5 {[%emt 0:00:17]} 18. Rxe5 {[%emt 0:00:01]} e6 {[%emt 0:00:01]} 19. g3 {[%emt 0:00:08]} a5 {[%emt 0:00:04]} 20. Nd4 {[%emt 0:00:21]} Bg7 {[%emt 0:00:06]} 21. Rae1 {[%emt 0:00:01]} f6 {[%emt 0:00:44]} 22. R5e2 {[%emt 0:00:06]} e5 {[%emt 0:00:00]} 23. fxe5 {[%emt 0:00:15]} fxe5 {[%emt 0:00:01]} 24. Nb3 {[%emt 0:00:05]} a4 {[%emt 0:00:12]} 25. Nc1 {[%emt 0:00:02]} Bg4 {[%emt 0:00:01]} 26. Bb1 {[%emt 0:00:13]} Rcd8 {[%emt 0:00:12]} 27. Re3 {[%emt 0:00:05]} Bh6 {[%emt 0:00:05]} 28. Nd3 {[%emt 0:00:02]} Bxe3 {[%emt 0:00:02]} 29. Rxe3 {[%emt 0:00:02]} Bf5 {[%emt 0:00:06]} 30. Qe2 {[%emt 0:00:02]} a3 {[%emt 0:00:06]} 31. b3 {[%emt 0:00:04]} Qc7 {[%emt 0:00:07]} 32. Bc2 {[%emt 0:00:01]} Qxc3 {[%emt 0:00:03]} 33. b4 {[%emt 0:00:04]} e4 {[%emt 0:00:07]} 34. Nf4 {[%emt 0:00:02]} Qa1+ {[%emt 0:00:07]} 35. Kg2 {[%emt 0:00:00]} d4 {[%emt 0:00:07]} 36. Bb3+ {[%emt 0:00:01]} Kh8 {[%emt 0:00:03]} 0-1

[Event "RUS-ch Men Blitz 2019"]
[Site "Sochi"]
[Date "2019.10.17"]
[Round "1.9"]
[White "Timofeev, Artyom"]
[Black "Magomedov, Rashid"]
[Result "1-0"]
[ECO "A15"]
[WhiteElo "2595"]
[BlackElo "2195"]
[Annotator "ChessBase"]
[PlyCount "45"]
[EventDate "2019.10.17"]
[EventType "swiss"]
[EventCountry "RUS"]
[SourceTitle "playchess.com"]
[Source "ChessBase"]
[SourceQuality "1"]
[TimeControl "180+2"]

1. c4 {[%emt 0:00:01]} Nf6 {[%emt 0:00:33]} 2. e3 {[%emt 0:00:02]} e6 {[%emt 0:00:02]} 3. Nf3 {[%emt 0:00:04]} c5 {[%emt 0:00:09]} 4. b3 {[%emt 0:00:03]} Nc6 {[%emt 0:00:15]} 5. Bb2 {[%emt 0:00:02]} b6 {[%emt 0:00:01]} 6. Be2 {[%emt 0:00:08]} Bb7 {[%emt 0:00:01]} 7. O-O {[%emt 0:00:03]} Be7 {[%emt 0:00:09]} 8. d4 {[%emt 0:00:02]} cxd4 {[%emt 0:00:05]} 9. Nxd4 {[%emt 0:00:04]} Nxd4 {[%emt 0:00:04]} 10. Bxd4 {[%emt 0:00:01]} O-O {[%emt 0:00:04]} 11. Nc3 {[%emt 0:00:08]} Ne4 {[%emt 0:00:14]} 12. Nxe4 {[%emt 0:00:05]} Bxe4 {[%emt 0:00:03]} 13. Qd2 {[%emt 0:00:02]} d5 {[%emt 0:00:20]} 14. Qb2 {[%emt 0:00:02]} Bc5 {[%emt 0:00:40]} 15. Rfd1 {[%emt 0:00:19]} Qg5 {[%emt 0:00:17]} 16. g3 {[%emt 0:00:02]} dxc4 {[%emt 0:00:08]} 17. Bxc5 {[%emt 0:00:22]} Qxc5 {[%emt 0:00:03]} 18. Rac1 {[%emt 0:00:02]} Bg6 {[%emt 0:00:19]} 19. Rxc4 {[%emt 0:00:03]} Qa5 {[%emt 0:00:04]} 20. h4 {[%emt 0:00:07]} h6 {[%emt 0:00:01]} 21. b4 {[%emt 0:00:07]} Qf5 {[%emt 0:00:06]} 22. Rf4 {[%emt 0:00:08]} Qd5 {[%emt 0:00:06]} 23. Rxd5 {[%emt 0:00:02]} 1-0

[Event "RUS-ch Men Blitz 2019"]
[Site "Sochi"]
[Date "2019.10.17"]
[Round "1.10"]
[White "Rozhko, Dmitry"]
[Black "Kokarev, Dmitry"]
[Result "0-1"]
[ECO "A48"]
[WhiteElo "2305"]
[BlackElo "2593"]
[Annotator "ChessBase"]
[PlyCount "46"]
[EventDate "2019.10.17"]
[EventType "swiss"]
[EventCountry "RUS"]
[SourceTitle "playchess.com"]
[Source "ChessBase"]
[SourceQuality "1"]
[TimeControl "180+2"]

1. d4 {[%emt 0:00:00]} Nf6 {[%emt 0:00:01]} 2. Nf3 {[%emt 0:00:00]} g6 {[%emt 0:00:01]} 3. Bg5 {[%emt 0:00:00]} Bg7 {[%emt 0:00:02]} 4. Nbd2 {[%emt 0:00:01]} O-O {[%emt 0:00:03]} 5. c3 {[%emt 0:00:01]} d6 {[%emt 0:00:02]} 6. e4 {[%emt 0:00:01]} c5 {[%emt 0:00:01]} 7. dxc5 {[%emt 0:00:04]} dxc5 {[%emt 0:00:01]} 8. Bc4 {[%emt 0:00:03]} Nc6 {[%emt 0:00:02]} 9. Qe2 {[%emt 0:00:05]} Na5 {[%emt 0:00:18]} 10. Bd3 {[%emt 0:00:05]} h6 {[%emt 0:00:06]} 11. Bh4 {[%emt 0:00:04]} Be6 {[%emt 0:00:09]} 12. O-O {[%emt 0:00:06]} Qb6 {[%emt 0:00:08]} 13. Rfb1 {[%emt 0:00:16]} Rfd8 {[%emt 0:00:14]} 14. Nc4 {[%emt 0:00:48]} Qa6 {[%emt 0:00:14]} 15. Nxa5 {[%emt 0:00:31]} Qxa5 {[%emt 0:00:08]} 16. Bc4 {[%emt 0:00:10]} Qb6 {[%emt 0:00:02]} 17. Bxe6 {[%emt 0:00:04]} Qxe6 {[%emt 0:00:02]} 18. Bxf6 {[%emt 0:00:19]} Bxf6 {[%emt 0:00:08]} 19. h3 {[%emt 0:00:15]} Bg7 {[%emt 0:00:05]} 20. a4 {[%emt 0:00:28]} Rd7 {[%emt 0:00:02]} 21. Rd1 {[%emt 0:00:02]} Rad8 {[%emt 0:00:02]} 22. Rxd7 {[%emt 0:00:13]} Qxd7 {[%emt 0:00:01]} 23. Qc4 {[%emt 0:00:10]} Qc6 {[%emt 0:00:02]} 0-1

[Event "RUS-ch Men Blitz 2019"]
[Site "Sochi"]
[Date "2019.10.17"]
[Round "1.11"]
[White "Golubov, Saveliy"]
[Black "Akhtariev, Andrey"]
[Result "1-0"]
[ECO "A46"]
[WhiteElo "2469"]
[BlackElo "2160"]
[Annotator "ChessBase"]
[PlyCount "79"]
[EventDate "2019.10.17"]
[EventType "swiss"]
[EventCountry "RUS"]
[SourceTitle "playchess.com"]
[Source "ChessBase"]
[SourceQuality "1"]
[TimeControl "180+2"]

1. d4 {[%emt 0:00:00]} Nf6 {[%emt 0:00:00]} 2. Nf3 {[%emt 0:00:00]} e6 {[%emt 0:00:00]} 3. Bf4 {[%emt 0:00:00]} b6 {[%emt 0:00:09]} 4. e3 {[%emt 0:00:02]} Bb7 {[%emt 0:00:01]} 5. Nbd2 {[%emt 0:00:01]} d6 {[%emt 0:00:06]} 6. Bd3 {[%emt 0:00:01]} Nbd7 {[%emt 0:00:16]} 7. O-O {[%emt 0:00:05]} c5 {[%emt 0:00:02]} 8. h3 {[%emt 0:00:04]} Be7 {[%emt 0:00:05]} 9. Bh2 {[%emt 0:00:08]} O-O {[%emt 0:00:14]} 10. a4 {[%emt 0:00:01]} Re8 {[%emt 0:00:03]} 11. c3 {[%emt 0:00:08]} Bf8 {[%emt 0:00:04]} 12. e4 {[%emt 0:00:04]} e5 {[%emt 0:00:05]} 13. dxe5 {[%emt 0:00:14]} dxe5 {[%emt 0:00:09]} 14. Qe2 {[%emt 0:00:03]} Qc7 {[%emt 0:00:08]} 15. Nc4 {[%emt 0:00:03]} Rad8 {[%emt 0:00:08]} 16. Rfd1 {[%emt 0:00:08]} g6 {[%emt 0:00:02]} 17. Bc2 {[%emt 0:00:04]} Ba6 {[%emt 0:00:17]} 18. Bb3 {[%emt 0:00:00]} Bg7 {[%emt 0:00:07]} 19. Qe1 {[%emt 0:00:05]} Re7 {[%emt 0:00:21]} 20. Ncxe5 {[%emt 0:00:20]} Nxe5 {[%emt 0:00:02]} 21. Rxd8+ {[%emt 0:00:02]} Qxd8 {[%emt 0:00:01]} 22. Nxe5 {[%emt 0:00:01]} Qe8 {[%emt 0:00:07]} 23. Bxf7+ {[%emt 0:00:33]} Rxf7 {[%emt 0:00:01]} 24. Nxf7 {[%emt 0:00:01]} Qxf7 {[%emt 0:00:02]} 25. Rd1 {[%emt 0:00:04]} Qe8 {[%emt 0:00:23]} 26. e5 {[%emt 0:00:08]} Nd7 {[%emt 0:00:08]} 27. e6 {[%emt 0:00:06]} Nf6 {[%emt 0:00:03]} 28. Bg3 {[%emt 0:00:26]} Bc4 {[%emt 0:00:05]} 29. e7 {[%emt 0:00:14]} Kf7 {[%emt 0:00:04]} 30. Bd6 {[%emt 0:00:02]} Qxa4 {[%emt 0:00:12]} 31. Rd2 {[%emt 0:00:24]} Ne8 {[%emt 0:00:01]} 32. Qe3 {[%emt 0:00:12]} Bb3 {[%emt 0:00:13]} 33. Qf3+ {[%emt 0:00:07]} Bf6 {[%emt 0:00:02]} 34. Be5 {[%emt 0:00:09]} Kxe7 {[%emt 0:00:06]} 35. Re2 {[%emt 0:00:05]} Qa1+ {[%emt 0:00:10]} 36. Kh2 {[%emt 0:00:01]} Bxe5+ {[%emt 0:00:01]} 37. Rxe5+ {[%emt 0:00:01]} Kd6 {[%emt 0:00:00]} 38. Rxe8 {[%emt 0:00:04]} Qxb2 {[%emt 0:00:05]} 39. Qf6+ {[%emt 0:00:01]} Kd5 {[%emt 0:00:02]} 40. c4+ {[%emt 0:00:01]} 1-0

[Event "RUS-ch Men Blitz 2019"]
[Site "Sochi"]
[Date "2019.10.17"]
[Round "1.12"]
[White "Gaydym, Arseniy"]
[Black "Nozdrachev, Vladislav"]
[Result "0-1"]
[ECO "C77"]
[WhiteElo "2139"]
[BlackElo "2494"]
[Annotator "ChessBase"]
[PlyCount "44"]
[EventDate "2019.10.17"]
[EventType "swiss"]
[EventCountry "RUS"]
[SourceTitle "playchess.com"]
[Source "ChessBase"]
[SourceQuality "1"]
[TimeControl "180+2"]

1. e4 {[%emt 0:00:00]} e5 {[%emt 0:00:00]} 2. Nf3 {[%emt 0:00:00]} Nc6 {[%emt 0:00:00]} 3. Bb5 {[%emt 0:00:02]} a6 {[%emt 0:00:00]} 4. Ba4 {[%emt 0:00:01]} Nf6 {[%emt 0:00:01]} 5. d3 {[%emt 0:00:01]} b5 {[%emt 0:00:04]} 6. Bb3 {[%emt 0:00:01]} Bc5 {[%emt 0:00:01]} 7. O-O d6 8. c3 {[%emt 0:00:06]} Bb6 {[%emt 0:00:02]} 9. a4 {[%emt 0:00:06]} Rb8 {[%emt 0:00:10]} 10. Nbd2 {[%emt 0:00:16]} O-O {[%emt 0:00:02]} 11. Re1 {[%emt 0:00:07]} Ng4 {[%emt 0:00:07]} 12. Re2 {[%emt 0:00:02]} Kh8 {[%emt 0:00:01]} 13. h3 {[%emt 0:00:05]} f5 {[%emt 0:00:00]} 14. d4 {[%emt 0:00:55]} exd4 {[%emt 0:00:06]} 15. hxg4 {[%emt 0:00:03]} dxc3 {[%emt 0:00:04]} 16. Nf1 {[%emt 0:00:24]} fxg4 {[%emt 0:00:01]} 17. Ng5 {[%emt 0:00:01]} Nd4 {[%emt 0:00:40]} 18. Nf7+ {[%emt 0:00:36]} Rxf7 {[%emt 0:00:01]} 19. Bxf7 {[%emt 0:00:01]} Qf6 {[%emt 0:00:18]} 20. Bd5 {[%emt 0:00:12]} c6 {[%emt 0:00:01]} 21. Ba2 {[%emt 0:00:02]} g3 {[%emt 0:00:27]} 22. a5 {[%emt 0:00:12]} Nxe2+ {[%emt 0:00:04]} 0-1

[Event "RUS-ch Men Blitz 2019"]
[Site "Sochi"]
[Date "2019.10.20"]
[Round "1.14"]
[White "Lysyj, Igor"]
[Black "Mamedov, Elmin"]
[Result "1-0"]
[ECO "A61"]
[WhiteElo "2596"]
[BlackElo "2149"]
[Annotator "ChessBase"]
[PlyCount "65"]
[EventDate "2019.10.17"]
[EventType "swiss"]
[EventCountry "RUS"]
[SourceTitle "playchess.com"]
[Source "ChessBase"]
[SourceQuality "1"]
[TimeControl "180+2"]

1. d4 {[%emt 0:00:00]} Nf6 {[%emt 0:00:00]} 2. c4 {[%emt 0:00:01]} c5 {[%emt 0:00:04]} 3. d5 {[%emt 0:00:01]} e6 {[%emt 0:00:01]} 4. Nc3 {[%emt 0:00:02]} exd5 {[%emt 0:00:01]} 5. cxd5 {[%emt 0:00:01]} d6 {[%emt 0:00:01]} 6. Nf3 {[%emt 0:00:02]} g6 {[%emt 0:00:00]} 7. Bf4 {[%emt 0:00:03]} Bg7 {[%emt 0:00:03]} 8. e3 {[%emt 0:00:03]} O-O {[%emt 0:00:07]} 9. h3 {[%emt 0:00:01]} a6 {[%emt 0:00:09]} 10. a4 {[%emt 0:00:01]} Qc7 {[%emt 0:00:37]} 11. Be2 {[%emt 0:00:11]} Nbd7 {[%emt 0:00:18]} 12. Nd2 {[%emt 0:00:03]} b6 {[%emt 0:00:30]} 13. O-O {[%emt 0:00:04]} Ne8 {[%emt 0:00:18]} 14. Qc2 {[%emt 0:00:05]} Ne5 {[%emt 0:00:06]} 15. Bg3 {[%emt 0:00:05]} f5 {[%emt 0:00:06]} 16. Rae1 {[%emt 0:00:16]} Rb8 {[%emt 0:00:18]} 17. f4 {[%emt 0:00:04]} Nf7 {[%emt 0:00:02]} 18. e4 {[%emt 0:00:01]} fxe4 {[%emt 0:00:03]} 19. Ndxe4 {[%emt 0:00:05]} Bf5 {[%emt 0:00:05]} 20. Bxa6 {[%emt 0:00:10]} Nf6 {[%emt 0:00:08]} 21. Nxf6+ {[%emt 0:00:06]} Bxf6 {[%emt 0:00:02]} 22. Bd3 {[%emt 0:00:02]} Bxd3 {[%emt 0:00:05]} 23. Qxd3 {[%emt 0:00:01]} Nh6 {[%emt 0:00:02]} 24. Nb5 {[%emt 0:00:07]} Qg7 {[%emt 0:00:06]} 25. Nxd6 {[%emt 0:00:12]} Bxb2 {[%emt 0:00:01]} 26. Re6 {[%emt 0:00:08]} Rbd8 {[%emt 0:00:05]} 27. Kh2 {[%emt 0:00:10]} Nf5 {[%emt 0:00:02]} 28. Nxf5 {[%emt 0:00:04]} Rxf5 {[%emt 0:00:01]} 29. Rfe1 {[%emt 0:00:19]} Qf7 {[%emt 0:00:11]} 30. d6 {[%emt 0:00:10]} Bd4 {[%emt 0:00:02]} 31. Qb5 {[%emt 0:00:05]} Qd7 {[%emt 0:00:04]} 32. Re8+ {[%emt 0:00:03]} Kg7 {[%emt 0:00:01]} 33. R8e7+ {[%emt 0:00:01]} 1-0

[Event "RUS-ch Men Blitz 2019"]
[Site "Sochi"]
[Date "2019.10.17"]
[Round "1.15"]
[White "Bocharov, Dmitry"]
[Black "Dolgov, Alexey S"]
[Result "1-0"]
[ECO "A30"]
[WhiteElo "2519"]
[BlackElo "2118"]
[Annotator "ChessBase"]
[PlyCount "55"]
[EventDate "2019.10.17"]
[EventType "swiss"]
[EventCountry "RUS"]
[SourceTitle "playchess.com"]
[Source "ChessBase"]
[SourceQuality "1"]
[TimeControl "180+2"]

1. c4 {[%emt 0:00:00]} c5 {[%emt 0:00:00]} 2. Nf3 {[%emt 0:00:02]} Nc6 {[%emt 0:00:03]} 3. d4 {[%emt 0:00:03]} cxd4 {[%emt 0:00:04]} 4. Nxd4 {[%emt 0:00:02]} Nf6 {[%emt 0:00:01]} 5. Nc3 {[%emt 0:00:03]} g6 {[%emt 0:00:02]} 6. Nc2 {[%emt 0:00:04]} Bg7 {[%emt 0:00:01]} 7. e4 {[%emt 0:00:02]} d6 {[%emt 0:00:04]} 8. Be2 {[%emt 0:00:02]} O-O {[%emt 0:00:02]} 9. O-O {[%emt 0:00:03]} Be6 {[%emt 0:00:14]} 10. Be3 {[%emt 0:00:10]} Rc8 {[%emt 0:00:02]} 11. Rc1 {[%emt 0:00:12]} a6 {[%emt 0:00:07]} 12. b3 {[%emt 0:00:22]} Qa5 {[%emt 0:00:02]} 13. Bd2 {[%emt 0:00:02]} Qd8 {[%emt 0:00:31]} 14. Kh1 {[%emt 0:00:13]} h5 {[%emt 0:00:30]} 15. f3 {[%emt 0:00:29]} Re8 {[%emt 0:00:02]} 16. Nd5 {[%emt 0:00:03]} Bd7 {[%emt 0:00:30]} 17. Be3 {[%emt 0:00:05]} Ne5 {[%emt 0:00:20]} 18. Bb6 {[%emt 0:00:09]} Nxd5 {[%emt 0:00:19]} 19. Bxd8 {[%emt 0:00:02]} Nc3 {[%emt 0:00:09]} 20. Qd2 {[%emt 0:00:07]} Nxe2 {[%emt 0:00:02]} 21. Qxe2 {[%emt 0:00:02]} Rexd8 {[%emt 0:00:05]} 22. Ne3 {[%emt 0:00:02]} e6 {[%emt 0:00:04]} 23. Rcd1 {[%emt 0:00:04]} Be8 {[%emt 0:00:01]} 24. f4 {[%emt 0:00:08]} Nc6 {[%emt 0:00:01]} 25. Rd2 {[%emt 0:00:12]} Nd4 {[%emt 0:00:01]} 26. Qd1 {[%emt 0:00:03]} e5 {[%emt 0:00:07]} 27. Nd5 {[%emt 0:00:02]} b5 {[%emt 0:00:01]} 28. Ne7+ {[%emt 0:00:03]} 1-0

[Event "RUS-ch Men Blitz 2019"]
[Site "Sochi"]
[Date "2019.10.17"]
[Round "1.16"]
[White "Karalkin, Maksim"]
[Black "Pridorozhni, Aleksei"]
[Result "0-1"]
[ECO "B40"]
[WhiteElo "2141"]
[BlackElo "2599"]
[Annotator "ChessBase"]
[PlyCount "62"]
[EventDate "2019.10.17"]
[EventType "swiss"]
[EventCountry "RUS"]
[SourceTitle "playchess.com"]
[Source "ChessBase"]
[SourceQuality "1"]
[TimeControl "180+2"]

1. e4 {[%emt 0:00:00]} c5 {[%emt 0:00:00]} 2. Nf3 {[%emt 0:00:02]} e6 {[%emt 0:00:01]} 3. c3 {[%emt 0:00:01]} a6 {[%emt 0:00:03]} 4. d4 {[%emt 0:00:08]} d5 {[%emt 0:00:01]} 5. exd5 {[%emt 0:00:04]} exd5 {[%emt 0:00:02]} 6. Bd3 {[%emt 0:00:17]} c4 {[%emt 0:00:02]} 7. Bc2 {[%emt 0:00:08]} Nc6 {[%emt 0:00:03]} 8. O-O {[%emt 0:00:03]} Nf6 {[%emt 0:00:03]} 9. Re1+ {[%emt 0:00:10]} Be7 {[%emt 0:00:02]} 10. b3 {[%emt 0:00:01]} cxb3 {[%emt 0:00:05]} 11. axb3 {[%emt 0:00:01]} O-O {[%emt 0:00:18]} 12. Qd3 {[%emt 0:00:13]} Ne4 {[%emt 0:00:06]} 13. Ba3 {[%emt 0:00:31]} Bxa3 {[%emt 0:00:08]} 14. Rxa3 {[%emt 0:00:02]} Bf5 {[%emt 0:00:02]} 15. Qd1 {[%emt 0:00:36]} Rc8 {[%emt 0:00:07]} 16. Bd3 {[%emt 0:00:06]} Bg6 {[%emt 0:00:05]} 17. Ra2 {[%emt 0:00:09]} Qd6 {[%emt 0:00:11]} 18. Rae2 {[%emt 0:00:05]} b5 {[%emt 0:00:24]} 19. h3 {[%emt 0:00:08]} Qb8 {[%emt 0:00:15]} 20. Re3 {[%emt 0:00:24]} a5 {[%emt 0:00:11]} 21. Nh4 {[%emt 0:00:01]} Nf6 {[%emt 0:00:01]} 22. Nxg6 {[%emt 0:00:02]} hxg6 {[%emt 0:00:01]} 23. Nd2 {[%emt 0:00:05]} b4 {[%emt 0:00:05]} 24. cxb4 {[%emt 0:00:06]} Qxb4 {[%emt 0:00:05]} 25. Nf3 {[%emt 0:00:03]} Nxd4 {[%emt 0:00:05]} 26. Nxd4 {[%emt 0:00:17]} Qxd4 {[%emt 0:00:01]} 27. Re7 {[%emt 0:00:07]} Rc3 {[%emt 0:00:08]} 28. Bc2 {[%emt 0:00:02]} Qxd1 {[%emt 0:00:02]} 29. Bxd1 {[%emt 0:00:01]} Rc1 {[%emt 0:00:17]} 30. Kf1 {[%emt 0:00:02]} Ne4 {[%emt 0:00:05]} 31. Ra7 {[%emt 0:00:02]} Re8 {[%emt 0:00:06]} 0-1

[Event "RUS-ch Men Blitz 2019"]
[Site "Sochi"]
[Date "2019.10.17"]
[Round "1.17"]
[White "Rozum, Ivan"]
[Black "Berko, Igor"]
[Result "1-0"]
[ECO "A16"]
[WhiteElo "2599"]
[BlackElo "2014"]
[Annotator "ChessBase"]
[PlyCount "45"]
[EventDate "2019.10.17"]
[EventType "swiss"]
[EventCountry "RUS"]
[SourceTitle "playchess.com"]
[Source "ChessBase"]
[SourceQuality "1"]
[TimeControl "180+2"]

1. c4 {[%emt 0:00:00]} Nf6 {[%emt 0:00:02]} 2. Nc3 {[%emt 0:00:01]} d5 {[%emt 0:00:05]} 3. cxd5 {[%emt 0:00:02]} Nxd5 {[%emt 0:00:01]} 4. g3 {[%emt 0:00:02]} c6 {[%emt 0:00:02]} 5. Bg2 {[%emt 0:00:01]} e5 {[%emt 0:00:05]} 6. Nf3 {[%emt 0:00:05]} Qc7 {[%emt 0:00:15]} 7. O-O {[%emt 0:00:07]} Be7 {[%emt 0:00:05]} 8. Qc2 {[%emt 0:00:13]} Be6 {[%emt 0:00:10]} 9. Nxd5 {[%emt 0:00:05]} Bxd5 {[%emt 0:00:03]} 10. e4 {[%emt 0:00:01]} Be6 {[%emt 0:00:05]} 11. d4 {[%emt 0:00:01]} exd4 {[%emt 0:00:22]} 12. Nxd4 {[%emt 0:00:05]} Bd7 {[%emt 0:00:11]} 13. Bf4 {[%emt 0:00:05]} Qb6 {[%emt 0:00:07]} 14. Be3 {[%emt 0:00:13]} Qa5 {[%emt 0:00:16]} 15. f4 {[%emt 0:00:08]} O-O {[%emt 0:00:10]} 16. e5 {[%emt 0:00:02]} Na6 {[%emt 0:00:15]} 17. a3 {[%emt 0:00:01]} Qd8 {[%emt 0:00:30]} 18. Rad1 {[%emt 0:00:04]} Qc8 {[%emt 0:00:06]} 19. f5 Bc5 {[%emt 0:00:08]} 20. b4 {[%emt 0:00:17]} Bxd4 {[%emt 0:00:05]} 21. Bxd4 {[%emt 0:00:08]} Nc7 {[%emt 0:00:10]} 22. Bb2 {[%emt 0:00:05]} Rd8 {[%emt 0:00:09]} 23. f6 {[%emt 0:00:10]} 1-0

[Event "RUS-ch Men Blitz 2019"]
[Site "Sochi"]
[Date "2019.10.17"]
[Round "1.18"]
[White "Oganyan, Arsen"]
[Black "Sakaev, Konstantin"]
[Result "0-1"]
[ECO "E10"]
[WhiteElo "2213"]
[BlackElo "2595"]
[Annotator "ChessBase"]
[PlyCount "34"]
[EventDate "2019.10.17"]
[EventType "swiss"]
[EventCountry "RUS"]
[SourceTitle "playchess.com"]
[Source "ChessBase"]
[SourceQuality "1"]
[TimeControl "180+2"]

1. d4 {[%emt 0:00:01]} Nf6 {[%emt 0:00:00]} 2. c4 {[%emt 0:00:02]} e6 {[%emt 0:00:00]} 3. Nf3 {[%emt 0:00:01]} d5 {[%emt 0:00:01]} 4. g3 {[%emt 0:00:09]} Bb4+ {[%emt 0:00:02]} 5. Bd2 {[%emt 0:00:02]} Be7 {[%emt 0:00:01]} 6. Bg2 {[%emt 0:00:01]} O-O {[%emt 0:00:02]} 7. O-O {[%emt 0:00:22]} Nbd7 {[%emt 0:00:01]} 8. Qc2 {[%emt 0:00:04]} c6 {[%emt 0:00:01]} 9. Bf4 {[%emt 0:00:08]} b6 {[%emt 0:00:01]} 10. Nbd2 {[%emt 0:00:04]} Nh5 {[%emt 0:00:07]} 11. Be3 {[%emt 0:00:11]} Bb7 {[%emt 0:00:02]} 12. Rfd1 {[%emt 0:00:28]} Rc8 {[%emt 0:00:02]} 13. Nf1 {[%emt 0:00:02]} Nhf6 {[%emt 0:00:27]} 14. Bf4 {[%emt 0:00:15]} c5 {[%emt 0:00:01]} 15. b3 {[%emt 0:00:17]} cxd4 {[%emt 0:00:10]} 16. Ne5 {[%emt 0:00:12]} b5 {[%emt 0:01:09]} 17. Nd2 {[%emt 0:00:27]} g5 {[%emt 0:00:11]} 0-1

[Event "RUS-ch Men Blitz 2019"]
[Site "Sochi"]
[Date "2019.10.17"]
[Round "1.19"]
[White "Yuffa, Daniil"]
[Black "Gimadutdinov, Ilnur"]
[Result "1-0"]
[ECO "B63"]
[WhiteElo "2577"]
[BlackElo "2146"]
[Annotator "ChessBase"]
[PlyCount "63"]
[EventDate "2019.10.17"]
[EventType "swiss"]
[EventCountry "RUS"]
[SourceTitle "playchess.com"]
[Source "ChessBase"]
[SourceQuality "1"]
[TimeControl "180+2"]

1. e4 {[%emt 0:00:00]} c5 {[%emt 0:00:00]} 2. Nf3 {[%emt 0:00:01]} d6 {[%emt 0:00:01]} 3. d4 {[%emt 0:00:01]} cxd4 {[%emt 0:00:01]} 4. Nxd4 {[%emt 0:00:01]} Nf6 {[%emt 0:00:01]} 5. Nc3 {[%emt 0:00:02]} Nc6 {[%emt 0:00:00]} 6. Bg5 {[%emt 0:00:01]} e6 {[%emt 0:00:01]} 7. Qd2 {[%emt 0:00:02]} Be7 {[%emt 0:00:01]} 8. O-O-O {[%emt 0:00:12]} O-O {[%emt 0:00:02]} 9. f3 {[%emt 0:00:13]} Nxd4 {[%emt 0:00:08]} 10. Qxd4 {[%emt 0:00:02]} Qa5 {[%emt 0:00:01]} 11. h4 {[%emt 0:00:01]} a6 {[%emt 0:00:07]} 12. Kb1 {[%emt 0:00:16]} b5 {[%emt 0:00:02]} 13. Qd2 {[%emt 0:00:45]} b4 {[%emt 0:00:39]} 14. Ne2 {[%emt 0:00:01]} Bb7 {[%emt 0:00:04]} 15. Nd4 {[%emt 0:00:01]} h6 {[%emt 0:00:16]} 16. Be3 {[%emt 0:00:01]} d5 {[%emt 0:00:09]} 17. e5 {[%emt 0:00:08]} Nd7 {[%emt 0:00:01]} 18. f4 {[%emt 0:00:13]} Nc5 {[%emt 0:00:06]} 19. Nb3 {[%emt 0:00:03]} Nxb3 {[%emt 0:00:02]} 20. cxb3 {[%emt 0:00:18]} Qc7 {[%emt 0:00:48]} 21. Bd4 {[%emt 0:00:09]} a5 {[%emt 0:00:01]} 22. Bb5 {[%emt 0:00:01]} Ba6 {[%emt 0:00:12]} 23. Rc1 {[%emt 0:00:02]} Qd8 {[%emt 0:00:11]} 24. Bc6 {[%emt 0:00:09]} Rc8 {[%emt 0:00:12]} 25. g4 {[%emt 0:00:01]} Rb8 {[%emt 0:00:27]} 26. f5 {[%emt 0:00:11]} exf5 {[%emt 0:00:02]} 27. gxf5 {[%emt 0:00:01]} Bc8 {[%emt 0:00:03]} 28. f6 {[%emt 0:00:05]} Bf5+ {[%emt 0:00:00]} 29. Ka1 {[%emt 0:00:00]} g6 {[%emt 0:00:01]} 30. fxe7 {[%emt 0:00:02]} Qxe7 {[%emt 0:00:01]} 31. Qxh6 {[%emt 0:00:08]} Be6 {[%emt 0:00:11]} 32. Bc5 {[%emt 0:00:04]} 1-0